bitfinex-derivatives/quotes_ETHF0:USTF0_20260123
["timestamp","ask_amount","ask_price","bid_price","bid_amount"]
[1769205770661,0.88442067,2954.1,2953.0,0.15440276]
[1769205770863,0.88442067,2954.0,2953.0,0.15440276]
[1769205771155,0.16946,2954.2,2953.0,0.15440276]
[1769205771357,0.88442067,2954.1,2953.0,0.15440276]
[1769205771554,0.88442067,2954.0,2953.0,0.15440276]
[1769205771758,0.16946,2954.2,2953.0,0.15440276]
[1769205771953,0.88438877,2954.1,2953.0,0.15440276]
[1769205772157,0.16946,2954.2,2953.0,0.15440276]
[1769205772354,0.88427308,2954.1,2953.0,0.15440276]
[1769205772560,0.16946,2954.2,2953.0,0.15440276]
[1769205772764,0.88425526,2954.1,2953.0,0.15440276]
[1769205772962,0.16946,2954.2,2953.0,0.15440276]
[1769205773163,0.88425526,2954.1,2953.0,0.15440276]
[1769205773365,0.88425526,2954.0,2953.0,0.15440276]
[1769205773559,0.16946,2954.2,2953.0,0.15440276]
[1769205773760,0.88423907,2954.1,2953.0,0.15440276]
[1769205773961,0.88423907,2954.0,2953.0,0.15440276]
[1769205774157,0.16946,2954.2,2953.0,0.15440276]
[1769205774362,0.88423811,2954.1,2953.0,0.15440276]
[1769205774565,0.88423811,2954.0,2953.0,0.15440276]
[1769205774762,0.16946,2954.2,2953.0,0.15440276]
[1769205774971,0.88421362,2954.1,2953.0,0.15440276]
[1769205775163,40.8,2954.7,2953.0,0.15440276]
[1769205775365,0.88417562,2954.6,2953.0,0.15440276]
[1769205775565,0.88417562,2954.5,2953.0,0.15440276]
[1769205775766,40.96943,2954.7,2953.0,0.15440276]
[1769205775767,0.88417562,2954.4,2953.0,0.15440276]
[1769205775968,0.88417562,2954.3,2953.0,0.15440276]
[1769205776170,0.88417562,2954.2,2953.0,0.15440276]
[1769205776470,0.88431518,2954.1,2953.0,0.15440276]
[1769205776666,0.16945,2954.4,2953.0,0.15440276]
[1769205776872,0.88431512,2954.3,2953.0,0.15440276]
[1769205777064,0.88431512,2954.2,2953.0,0.15440276]
[1769205777266,0.88431512,2954.1,2953.0,0.15440276]
[1769205777466,0.16945,2954.4,2953.0,0.15440276]
[1769205777673,0.88459246,2954.3,2953.0,0.15440276]
[1769205777869,0.88459246,2954.2,2953.0,0.15440276]
[1769205778070,0.88459246,2954.1,2953.0,0.15440276]
[1769205778281,0.16945,2954.4,2953.0,0.15440276]
[1769205778483,0.88471866,2954.3,2953.0,0.15440276]
[1769205778780,0.88471866,2954.2,2953.0,0.15440276]
[1769205778979,0.88471866,2954.1,2953.0,0.15440276]
[1769205779182,0.16945,2954.4,2953.0,0.15440276]
[1769205779383,0.88470571,2954.3,2953.0,0.15440276]
[1769205779679,0.88470571,2954.2,2953.0,0.15440276]
[1769205779881,0.88470571,2954.1,2953.0,0.15440276]
[1769205780178,0.06011733,2954.8,2953.0,0.15440276]
[1769205780486,0.16948,2953.9,2953.0,0.00932743]
[1769205780677,0.88485114,2953.8,2953.0,0.00932743]
[1769205783384,0.00508405,2953.7,2952.2,0.13779953]
[1769205783575,0.88485114,2953.6,2952.2,0.13779953]
[1769205783778,0.88485114,2953.5,2952.2,0.13779953]
[1769205783978,0.88468152,2953.4,2952.2,0.13779953]
[1769205784278,0.00508405,2953.7,2952.2,0.14154691]
[1769205784478,0.88443153,2953.6,2952.2,0.14154691]
[1769205784684,0.88443153,2953.5,2952.2,0.14154691]
[1769205784983,0.00508405,2953.7,2952.2,0.14154691]
[1769205785183,0.88440183,2953.6,2952.2,0.14154691]
[1769205785387,0.00508405,2953.7,2952.2,0.14154691]
[1769205785687,0.88423781,2953.6,2952.2,0.14154691]
[1769205785992,0.00508405,2953.7,2952.2,0.14154691]
[1769205787888,0.88430768,2953.6,2952.2,0.14154691]
[1769205788187,0.00508405,2953.7,2952.2,0.14154691]
[1769205788384,0.88428222,2953.6,2952.2,0.14154691]
[1769205788582,0.00508405,2953.7,2952.2,0.14154691]
[1769205788792,0.16943,2954.8,2953.0,0.14306861]
[1769205789087,0.884213,2954.7,2953.0,0.14306861]
[1769205789282,0.884213,2954.6,2953.0,0.14306861]
[1769205789483,0.884213,2954.5,2953.0,0.14306861]
[1769205789676,0.884213,2954.4,2953.0,0.14306861]
[1769205789880,0.884213,2954.3,2953.0,0.14306861]
[1769205790082,0.16943,2954.8,2953.0,0.14306861]
[1769205790283,0.8843692,2954.7,2953.0,0.14306861]
[1769205790487,0.8843692,2954.6,2953.0,0.14306861]
[1769205790687,0.8843692,2954.5,2953.0,0.14306861]
[1769205790890,0.8843692,2954.4,2953.0,0.14306861]
[1769205791080,0.8843692,2954.3,2953.0,0.14306861]
[1769205791285,0.16943,2954.8,2953.0,0.14306861]
[1769205791475,0.88473583,2954.7,2953.0,0.14306861]
[1769205791686,0.16944,2954.5,2953.0,0.14306861]
[1769205791880,0.88473583,2954.4,2953.0,0.14306861]
[1769205792889,0.00384282,2955.1,2953.6,0.14306861]
[1769205798386,0.00384282,2955.1,2954.0,0.14306861]
[1769205798581,0.16934,2956.3,2954.2,0.14306861]
[1769205798892,40.96934,2956.3,2954.4,0.14306861]
[1769205799191,40.96934,2956.3,2955.0,0.00508405]
[1769205799591,40.97354568,2956.3,2955.0,0.00925377]
[1769205802794,40.80420568,2956.3,2955.0,0.00925377]
[1769205803096,0.00507503,2955.9,2954.1,0.31252861]
[1769205803495,0.00507503,2955.9,2954.2,0.14306861]
[1769205803892,0.00507503,2955.9,2954.2,0.14686039]
[1769205805388,0.00507503,2955.9,2954.2,3.53586039]
[1769205805590,0.00507503,2955.9,2954.3,0.14306861]
[1769205806797,0.00507503,2955.9,2954.4,0.14306861]
[1769205807691,0.00507503,2955.9,2954.6,0.14306861]
[1769205808288,0.87243395,2955.8,2954.2,0.14686039]
[1769205808599,0.16938,2955.6,2954.2,0.14686039]
[1769205808796,0.04345626,2955.4,2953.3,0.16951]
[1769205809100,0.16943,2954.8,2953.4,0.14306861]
[1769205809892,0.16943,2954.8,2953.4,0.14719381]
[1769205810093,0.00507503,2954.4,2953.4,0.14719381]
[1769205812395,0.00507503,2954.4,2953.4,0.0041252]
[1769205815996,2.43492377,2955.3,2953.4,0.14274532]
[1769205816199,0.14416075,2957.0,2954.2,2.42791196]
[1769205816398,0.14416075,2957.0,2954.7,2.42791196]
[1769205816594,0.14416075,2958.1,2955.8,0.16936]
[1769205816798,0.16918,2959.0,2955.9,29.563]
[1769205817001,0.27568808,2959.3,2956.4,2.42791196]
[1769205817304,0.1692,2958.8,2956.4,3.39297197]
[1769205817505,0.82893337,2958.7,2956.4,3.39297197]
[1769205817699,0.00507503,2958.1,2956.4,3.39297197]
[1769205818206,0.00507503,2958.1,2956.4,0.00397197]
[1769205818504,0.00507503,2958.1,2956.5,5.84]
[1769205818698,8.96411781,2958.1,2956.6,3.388]
[1769205818900,9.09879596,2958.0,2956.6,3.388]
[1769205819298,8.95904278,2957.9,2956.6,3.388]
[1769205820403,8.95904278,2957.9,2956.4,0.00397197]
[1769205820606,0.13975318,2957.8,2956.4,0.00397197]
[1769205820901,0.13975318,2957.3,2956.4,0.00397197]
[1769205821097,0.13975318,2957.3,2955.3,0.16939]
[1769205821299,0.13975318,2957.3,2955.6,3.388]
[1769205821602,0.00507503,2956.7,2955.6,3.388]
[1769205821899,0.00507503,2956.7,2955.7,3.388]
[1769205822304,0.00810876,2956.7,2955.7,3.39041179]
[1769205824601,0.13975318,2957.3,2955.7,3.39041179]
[1769205824803,0.13975318,2957.3,2955.9,0.00507503]
[1769205825000,0.13975318,2958.4,2955.9,0.14369515]
[1769205825203,0.13975318,2958.4,2956.5,0.16932]
[1769205825705,0.14284029,2958.4,2956.5,0.16932]
[1769205826003,0.00308711,2958.4,2956.8,0.13862012]
[1769205826213,0.13975318,2959.7,2957.9,0.30786012]
[1769205826509,9.09879596,2959.7,2958.0,3.387]
[1769205826705,0.13975318,2959.4,2957.4,0.16927]
[1769205826902,0.13975318,2959.4,2958.6,0.00507503]
[1769205827311,0.13975318,2959.4,2957.1,5.269]
[1769205827312,8.95904278,2958.7,2957.1,5.269]
[1769205827606,0.13975318,2959.0,2957.1,5.269]
[1769205828209,0.13975318,2959.0,2957.1,5.44125133]
[1769205829307,0.13975318,2959.0,2957.1,5.57987145]
[1769205830399,0.13975318,2959.0,2957.2,0.30790012]
[1769205830907,0.13975318,2959.0,2957.3,0.16928]
[1769205831110,0.00507503,2959.3,2957.4,0.30789012]
[1769205831310,0.00507503,2959.3,2957.7,0.16926]
[1769205831509,0.00507503,2959.3,2957.8,5.267]
[1769205832810,9.10387099,2959.3,2957.8,2.456]
[1769205833011,0.14482821,2959.3,2957.9,3.386]
[1769205833202,0.00507503,2959.3,2957.9,3.386]
[1769205833808,8.96411781,2959.3,2957.7,0.16926]
[1769205834016,8.96411781,2959.3,2957.7,3.55426]
[1769205834017,0.00507503,2959.3,2957.7,3.55426]
[1769205836011,9.09879596,2958.9,2957.2,5.841]
[1769205836211,0.13975318,2958.9,2957.2,5.841]
[1769205836810,0.13975318,2958.9,2957.2,6.01028]
[1769205837114,0.13975318,2958.9,2957.2,6.14890012]
[1769205838109,0.13975318,2958.9,2957.2,0.30790012]
[1769205838314,0.13975318,2958.7,2957.2,0.16928]
[1769205838712,8.95904278,2958.5,2957.2,0.16928]
[1769205839115,8.95904278,2958.4,2957.2,0.16928]
[1769205839314,8.95904278,2958.5,2957.2,0.16928]
[1769205839716,8.95904278,2958.4,2957.2,0.16928]
[1769205840019,8.95904278,2958.5,2957.2,0.16928]
[1769205840220,0.13975318,2958.3,2957.1,0.00296133]
[1769205840720,8.95904278,2958.1,2957.1,0.00296133]
[1769205841220,8.95904278,2958.0,2957.1,0.00296133]
[1769205841419,8.95904278,2958.1,2957.1,0.00296133]
[1769205841618,0.13975318,2958.8,2957.1,0.17225133]
[1769205841916,8.95904278,2958.7,2957.1,0.17225133]
[1769205842112,8.95904278,2958.6,2957.1,0.17225133]
[1769205842513,8.95904278,2958.5,2957.1,0.17225133]
[1769205842808,8.95904278,2958.6,2957.1,0.17225133]
[1769205843418,8.95904278,2958.5,2957.1,0.17225133]
[1769205843617,8.95904278,2958.6,2957.1,0.17225133]
[1769205843818,0.23688575,2958.5,2957.1,0.00296133]
[1769205844015,8.95904278,2958.0,2957.1,0.00296133]
[1769205844219,8.95904278,2957.7,2957.1,0.00296133]
[1769205844519,8.95904278,2957.8,2957.1,0.00296133]
[1769205844718,8.95904278,2957.8,2956.6,0.16932]
[1769205844921,8.95904278,2957.6,2956.1,0.23762666]
[1769205845113,0.00507503,2957.7,2956.1,6.07562666]
[1769205845309,0.00507503,2957.7,2956.1,0.23762666]
[1769205845619,0.23688575,2957.6,2956.0,3.55435]
[1769205845817,8.95904278,2957.5,2956.0,3.5577641]
[1769205846117,8.95904278,2957.4,2956.0,0.1727641]
[1769205846323,8.95904278,2956.8,2956.0,0.0034141]
[1769205846524,0.00356703,2956.8,2956.0,0.0034141]
[1769205846724,8.95904278,2956.5,2956.0,0.0034141]
[1769205847221,8.95904278,2956.5,2954.9,3.28742078]
[1769205847222,8.95904278,2956.2,2955.2,5.838]
[1769205847522,0.24045278,2956.8,2955.2,5.838]
[1769205847716,8.95904278,2956.5,2955.0,0.16941]
[1769205847923,0.00507503,2956.3,2955.0,6.00841]
[1769205848224,0.00507503,2956.3,2955.0,6.01189772]
[1769205849319,8.95904278,2956.1,2955.0,0.17289772]
[1769205849726,8.95904278,2956.0,2955.0,0.17289772]
[1769205849917,8.95904278,2956.1,2955.0,0.17289772]
[1769205850319,8.95904278,2956.0,2955.0,0.17289772]
[1769205850519,8.95904278,2956.1,2955.0,0.17289772]
[1769205851029,8.95904278,2955.8,2955.0,0.00348772]
[1769205851228,0.23866681,2956.3,2955.0,0.00348772]
[1769205851229,8.95904278,2955.9,2955.0,0.00348772]
[1769205851629,8.95904278,2955.7,2955.0,0.00348772]
[1769205851822,8.95904278,2955.9,2955.0,0.00348772]
[1769205852227,8.95904278,2955.7,2955.0,0.00348772]
[1769205852428,8.95904278,2955.9,2955.0,0.00348772]
[1769205852623,0.23866681,2956.3,2955.0,0.00348772]
[1769205852830,8.95904278,2955.8,2955.0,0.00348772]
[1769205853232,8.95904278,2955.6,2955.0,0.00348772]
[1769205853431,8.95904278,2955.9,2955.0,0.00348772]
[1769205853835,0.23866681,2956.3,2955.0,0.00348772]
[1769205854531,8.95904278,2955.8,2955.0,0.00348772]
[1769205854931,8.95904278,2955.6,2955.0,0.00348772]
[1769205855127,8.95904278,2955.8,2955.0,0.00348772]
[1769205855534,8.95904278,2955.6,2955.0,0.00348772]
[1769205855833,8.95904278,2955.8,2955.0,0.00348772]
[1769205856337,8.95904278,2955.6,2955.0,0.00348772]
[1769205856537,8.95904278,2955.8,2955.0,0.00348772]
[1769205856939,8.95904278,2955.6,2955.0,0.00348772]
[1769205857233,8.95904278,2955.8,2955.0,0.00348772]
[1769205857644,8.95904278,2955.6,2955.0,0.00348772]
[1769205857834,8.95904278,2955.5,2955.0,0.00348772]
[1769205858142,8.95904278,2955.8,2955.0,0.00348772]
[1769205858540,8.95904278,2955.6,2955.0,0.00348772]
[1769205858741,8.95904278,2955.8,2955.0,0.00348772]
[1769205859235,0.23866681,2956.3,2955.0,0.00348772]
[1769205859431,8.95904278,2955.8,2955.0,0.00348772]
[1769205859937,8.95904278,2955.5,2955.0,0.00348772]
[1769205860128,8.95904278,2955.8,2954.7,0.16942]
[1769205860332,8.95904278,2955.7,2954.7,0.16942]
[1769205860740,8.95904278,2955.6,2954.7,0.16942]
[1769205861037,8.95904278,2955.7,2954.7,0.17226759]
[1769205861434,8.95904278,2955.6,2954.7,0.17226759]
[1769205861639,8.95904278,2955.7,2954.7,0.17226759]
[1769205862139,8.95904278,2955.6,2954.7,0.17226759]
[1769205862342,8.95904278,2955.7,2954.7,0.17226759]
[1769205862735,0.23359178,2955.9,2954.7,0.17226759]
[1769205862736,8.95904278,2955.6,2954.7,0.17226759]
[1769205862934,8.95904278,2955.7,2954.7,0.17226759]
[1769205863340,8.95904278,2955.6,2954.7,0.17226759]
[1769205863541,8.95904278,2955.7,2954.7,0.17226759]
[1769205863941,0.23359178,2955.7,2954.7,0.00284759]
[1769205864150,8.95904278,2955.1,2954.1,0.16946]
[1769205864337,8.95904278,2955.5,2954.1,0.16946]
[1769205864643,8.95904278,2955.3,2954.1,0.16946]
[1769205865039,8.95904278,2955.1,2954.1,0.17220592]
[1769205865239,8.95904278,2955.3,2954.1,0.17220592]
[1769205865745,8.95904278,2955.1,2954.1,0.17220592]
[1769205865940,8.95904278,2955.3,2954.1,0.17220592]
[1769205866336,8.95904278,2955.1,2954.1,0.17220592]
[1769205866538,8.95904278,2955.3,2954.1,0.17220592]
[1769205866945,8.95904278,2955.1,2954.1,0.17220592]
[1769205867146,8.95904278,2955.3,2954.1,0.17220592]
[1769205867548,8.95904278,2955.1,2954.1,0.17220592]
[1769205867746,8.95904278,2955.3,2954.1,0.17220592]
[1769205868247,8.95904278,2955.1,2954.1,0.17220592]
[1769205868546,8.95904278,2955.3,2954.1,0.17220592]
[1769205868947,8.95904278,2955.1,2954.1,0.17220592]
[1769205869249,8.95904278,2955.2,2954.1,0.17220592]
[1769205869753,8.95904278,2954.9,2954.1,0.17220592]
[1769205870247,8.95904278,2954.7,2954.1,0.17220592]
[1769205870444,0.00309091,2954.7,2954.1,0.17220592]
[1769205870652,8.95904278,2954.6,2954.1,0.17220592]
[1769205871245,6.74278927,2954.6,2954.2,0.16946]
[1769205871447,0.00507503,2954.6,2954.2,0.16946]
[1769205874952,6.74278927,2954.6,2954.2,0.16946]
[1769205875756,6.74278927,2954.6,2954.1,0.00782095]
[1769205875958,0.00507503,2954.6,2954.2,0.16946]
[1769205876458,6.74278927,2954.6,2954.2,0.16946]
[1769205876647,6.74278927,2954.6,2953.9,4.86439571]
[1769205876956,0.00507503,2954.6,2953.9,2.41264467]
[1769205877157,6.73771424,2954.4,2953.9,2.47524896]
[1769205877553,6.73771424,2954.3,2953.9,2.47524896]
[1769205877755,6.73771424,2954.4,2953.9,1.89735919]
[1769205878147,6.73771424,2954.3,2953.9,1.89735919]
[1769205878349,6.36345424,2954.3,2953.9,1.89735919]
[1769205878545,6.01055424,2954.3,2953.9,1.89735919]
[1769205878755,5.64426424,2954.3,2953.9,1.89999844]
[1769205879154,5.30504424,2954.3,2953.9,1.89999844]
[1769205879352,0.00507503,2954.6,2953.9,1.89999844]
[1769205879553,5.30504424,2954.4,2954.0,0.16947]
[1769205879950,0.00507503,2954.6,2954.0,0.16947]
[1769205880151,4.49325424,2954.3,2954.0,0.16947]
[1769205880354,3.70228424,2954.1,2954.0,0.16947]
[1769205880550,3.70228424,2954.3,2954.0,0.16947]
[1769205880955,3.32975424,2954.3,2954.0,0.16947]
[1769205881160,2.95722424,2954.1,2954.0,0.16947]
[1769205881357,2.95722424,2954.3,2954.0,0.16947]
[1769205881759,0.00507503,2954.6,2954.0,0.16947]
[1769205881958,2.12993424,2954.3,2954.0,0.16947]
[1769205882260,1.30442424,2954.1,2954.0,0.16947]
[1769205882460,0.16760762,2954.1,2954.0,0.16947]
[1769205882660,0.00507503,2954.6,2954.0,0.16947]
[1769205884859,0.00507503,2954.6,2954.1,2.496]
[1769205886861,0.37172439,2954.6,2954.1,2.496]
[1769205887862,0.37172439,2954.6,2953.9,0.00263925]
[1769205888056,0.36664936,2955.5,2954.5,0.16944]
[1769205888257,0.36664936,2955.5,2954.6,2.505]
[1769205888460,0.36664936,2956.4,2954.6,2.505]
[1769205888662,0.36664936,2955.9,2954.6,2.67443]
[1769205889052,0.36962397,2955.9,2954.6,2.67443]
[1769205890356,0.36962397,2955.9,2954.6,5.08382571]
[1769205891160,0.36962397,2955.9,2954.6,2.67443]
[1769205891360,0.36962397,2955.9,2954.6,5.08382571]
[1769205892166,0.36962397,2955.9,2954.6,2.57882571]
[1769205892369,0.36962397,2955.9,2954.7,2.508]
[1769205892762,0.3727225,2955.9,2954.7,2.508]
[1769205896667,0.00309853,2955.8,2954.7,2.508]
[1769205896864,0.36974789,2955.8,2954.7,2.508]
[1769205897971,0.36664936,2955.8,2954.7,2.508]
[1769205898172,0.36974789,2955.8,2954.7,2.508]
[1769205899166,0.36664936,2955.8,2954.7,2.508]
[1769205899371,0.36664936,2955.6,2954.7,2.508]
[1769205899666,0.36974789,2955.6,2954.5,2.40939571]
[1769205899870,0.00309853,2955.4,2954.4,2.518]
[1769205900074,0.36974789,2955.5,2954.4,2.518]
[1769205900268,0.36664936,2955.5,2954.4,2.518]
[1769205900468,0.00309853,2955.4,2954.4,4.92739571]
[1769205900668,0.00309853,2955.6,2954.4,4.92739571]
[1769205901072,0.00309853,2955.5,2954.4,4.92739571]
[1769205901373,0.36974789,2955.6,2954.3,2.57884571]
[1769205901577,0.00507503,2955.2,2954.3,0.16945]
[1769205901767,0.37172439,2955.2,2954.1,2.40939571]
[1769205901975,0.00309853,2955.0,2954.1,2.523]
[1769205902175,0.00309853,2955.0,2954.1,4.93239571]
[1769205902470,0.37172439,2955.2,2954.1,4.93239571]
[1769205902668,0.00309853,2955.1,2954.1,4.93239571]
[1769205902864,0.00309853,2955.0,2954.1,4.93239571]
[1769205903070,0.00507503,2955.2,2954.2,2.57885571]
[1769205903874,0.00297461,2955.9,2954.3,2.40939571]
[1769205904075,0.00297461,2955.9,2954.7,0.16943]
[1769205904573,0.00309853,2955.8,2954.7,0.16943]
[1769205904778,0.00309853,2955.8,2954.7,2.57882571]
[1769205904975,0.00297461,2955.9,2954.7,2.57882571]
[1769205905178,0.00607314,2955.9,2954.9,2.40939571]
[1769205905379,0.00309853,2955.8,2955.0,2.53]
[1769205905771,0.00297461,2955.9,2955.0,4.93939571]
[1769205906673,0.00297461,2955.9,2955.1,2.40939571]
[1769205907079,0.00297461,2955.9,2955.0,4.93939571]
[1769205907273,0.00297461,2955.9,2955.0,5.10880571]
[1769205909181,0.00297461,2955.9,2955.1,0.1694]
[1769205909873,40.8,2957.0,2955.1,0.1694]
[1769205910076,0.42670625,2957.0,2955.5,2.40939571]
[1769205910275,0.42360772,2957.0,2955.5,2.40939571]
[1769205910476,0.00309853,2956.9,2955.7,0.16937]
[1769205910679,0.42360772,2957.0,2955.8,2.544]
[1769205910879,0.42360772,2957.0,2956.0,0.00507503]
[1769205910880,0.00309853,2956.9,2956.0,0.00507503]
[1769205911080,0.00309853,2956.9,2956.0,0.0080223]
[1769205911281,0.00309853,2956.7,2956.0,0.0080223]
[1769205911481,0.4263572,2957.0,2956.0,0.0080223]
[1769205911882,0.00309853,2956.7,2956.0,0.0080223]
[1769205912082,0.4263572,2957.0,2956.0,0.0080223]
[1769205912588,0.00309853,2956.7,2956.0,0.0080223]
[1769205912976,0.00309853,2956.6,2956.0,0.0080223]
[1769205913176,0.00309853,2956.7,2956.0,0.0080223]
[1769205913676,0.00309853,2956.6,2956.0,0.0080223]
[1769205913876,0.00309853,2956.7,2956.0,2.5530223]
[1769205914283,0.00309853,2956.5,2956.0,0.0080223]
[1769205914581,0.00309853,2956.7,2956.0,0.0080223]
[1769205915175,0.00309853,2956.5,2956.0,0.0080223]
[1769205915375,0.00309853,2956.7,2956.0,0.0080223]
[1769205915982,0.00309853,2956.5,2956.0,0.0080223]
[1769205916184,0.00309853,2956.7,2956.0,0.0080223]
[1769205916784,0.00309853,2956.5,2956.0,0.0080223]
[1769205916981,0.00309853,2956.7,2956.0,0.0080223]
[1769205917383,0.00309853,2956.5,2956.0,0.0080223]
[1769205917687,0.00309853,2956.7,2956.0,0.0080223]
[1769205917986,0.00309853,2956.5,2956.0,0.0080223]
[1769205918183,0.00309853,2956.7,2956.0,0.0080223]
[1769205918588,0.00309853,2956.5,2956.0,0.0080223]
[1769205918786,0.00309853,2956.7,2956.0,0.0080223]
[1769205919382,0.00309853,2956.5,2956.0,0.0080223]
[1769205919577,0.00309853,2956.7,2956.0,0.0080223]
[1769205919883,0.4263572,2957.0,2956.0,0.0080223]
[1769205920087,0.00309853,2956.6,2956.0,0.0080223]
[1769205920281,0.00309853,2956.4,2956.0,0.0080223]
[1769205920480,0.00309853,2956.3,2956.0,0.0080223]
[1769205920683,0.00309853,2956.6,2956.0,0.0080223]
[1769205921284,0.00309853,2956.4,2956.0,0.0080223]
[1769205921484,0.00309853,2956.6,2956.0,0.0080223]
[1769205922183,0.00309853,2956.4,2956.0,0.0080223]
[1769205922384,0.00309853,2956.6,2956.0,0.0080223]
[1769205922786,0.42360772,2956.6,2956.0,0.0080223]
[1769205922985,0.00309853,2956.1,2956.0,1e-08]
[1769205927097,0.42360772,2956.1,2954.8,3.55642]
[1769205927298,0.00309853,2955.8,2954.8,6.11542]
[1769205927595,0.00309853,2955.8,2954.8,0.16942]
[1769205927902,0.00309853,2955.6,2954.8,2.72942]
[1769205928101,0.00309853,2955.8,2954.8,2.73318103]
[1769205928797,0.00309853,2955.6,2954.8,2.73318103]
[1769205928995,0.00309853,2955.8,2954.8,2.73318103]
[1769205929498,0.00309853,2955.6,2954.8,2.73318103]
[1769205929699,0.00309853,2955.8,2954.9,0.16941]
[1769205930003,0.42868275,2956.6,2955.0,0.16941]
[1769205930196,0.00309853,2956.4,2955.0,0.16941]
[1769205930398,0.00309853,2956.3,2955.0,0.16941]
[1769205931099,0.00309853,2956.1,2955.0,0.16941]
[1769205931299,0.00309853,2956.3,2955.0,0.16941]
[1769205931701,0.00309853,2956.1,2955.0,0.16941]
[1769205932000,0.00309853,2956.3,2955.0,0.16941]
[1769205932596,0.00309853,2956.1,2955.0,0.16941]
[1769205932796,0.00309853,2956.3,2955.0,0.16941]
[1769205933405,0.00309853,2956.1,2955.0,0.16941]
[1769205933605,0.00309853,2956.3,2955.0,0.16941]
[1769205933799,0.00309853,2956.2,2955.0,0.16941]
[1769205934200,0.00309853,2956.2,2955.0,2.57880571]
[1769205934402,0.42868275,2956.6,2955.0,2.57880571]
[1769205934701,0.00309853,2956.2,2955.0,2.57880571]
[1769205935006,0.00309853,2956.0,2955.1,2.568]
[1769205935597,0.00309853,2955.7,2955.1,2.568]
[1769205935798,0.00309853,2955.8,2955.1,2.568]
[1769205936607,0.00309853,2955.6,2955.1,2.568]
[1769205936908,0.00309853,2955.8,2955.1,2.568]
[1769205937512,0.00309853,2955.6,2955.1,2.568]
[1769205937810,0.00309853,2955.8,2955.1,2.568]
[1769205938806,0.00309853,2955.6,2955.1,2.568]
[1769205939008,0.00309853,2955.8,2955.1,2.568]
[1769205939708,0.00309853,2955.6,2955.1,2.568]
[1769205939908,0.00309853,2955.8,2955.1,2.568]
[1769205940809,0.52788145,2956.3,2955.1,2.568]
[1769205942813,0.52788145,2956.3,2955.0,0.16941]
[1769205944511,0.52788145,2956.3,2955.1,0.16941]
[1769205945318,0.00507503,2956.6,2954.9,5.46977418]
[1769205945517,0.00507503,2956.6,2955.1,2.40939571]
[1769205946517,0.00507503,2956.6,2955.3,0.16939]
[1769205952323,0.83008987,2956.5,2955.3,2.57878571]
[1769205952621,0.00507503,2956.6,2955.3,2.57878571]
[1769205952823,0.83008987,2956.5,2955.3,2.57878571]
[1769205953016,0.53295648,2956.6,2955.3,2.57878571]
[1769205953216,0.83008987,2956.5,2955.3,2.57878571]
[1769205953417,0.53295648,2956.6,2955.3,2.57878571]
[1769205953717,0.83015964,2956.5,2955.3,2.57878571]
[1769205953924,0.53295648,2956.6,2955.3,2.57878571]
[1769205954320,0.83025497,2956.5,2955.3,2.57878571]
[1769205954620,0.53295648,2956.6,2955.3,2.57878571]
[1769205954920,0.8302662,2956.5,2955.3,2.57878571]
[1769205955123,0.53295648,2956.6,2955.3,2.57878571]
[1769205955427,0.53295648,2956.6,2955.0,6.86712311]
[1769205955428,0.52788145,2956.4,2955.1,2.40939571]
[1769205955723,0.52788145,2956.2,2955.1,2.40939571]
[1769205957219,0.52788145,2956.2,2955.0,2.40939571]
[1769205957525,0.52788145,2956.0,2954.9,2.40939571]
[1769205960724,0.52788145,2955.9,2954.8,2.41315674]
[1769205960927,0.52788145,2955.9,2954.8,0.00376103]
[1769205961121,0.52788145,2956.3,2954.8,2.41315674]
[1769205961426,42.1668808,2956.2,2954.8,2.41315674]
[1769205961628,0.83899935,2956.1,2954.8,0.00376103]
[1769205961829,1.3668808,2956.0,2954.8,0.00376103]
[1769205962029,0.52788145,2955.9,2954.8,0.00376103]
[1769205963134,41.50131403,2956.3,2954.8,0.00376103]
[1769205963321,0.83866327,2956.2,2954.8,0.00376103]
[1769205963627,0.83866327,2956.1,2954.8,0.00376103]
[1769205963824,0.83866327,2956.0,2954.8,0.00376103]
[1769205964028,0.53197403,2956.2,2954.8,0.00376103]
[1769205964323,0.16934,2956.3,2954.8,0.00376103]
[1769205964324,1.37052157,2956.1,2954.8,0.00376103]
[1769205964529,0.83854754,2956.0,2954.8,0.00376103]
[1769205964732,0.53197403,2956.1,2954.8,0.00376103]
[1769205964932,1.37042927,2956.0,2954.8,0.00376103]
[1769205965129,0.53197403,2956.0,2954.8,0.00376103]
[1769205966729,0.53197403,2955.8,2954.8,0.00376103]
[1769205966928,0.53197403,2955.6,2954.8,0.00376103]
[1769205971235,0.53197403,2955.6,2954.1,2.57885571]
[1769205972233,0.53197403,2955.6,2954.2,0.16945]
[1769205972428,0.53197403,2955.6,2954.2,2.57884571]
[1769205974240,0.53197403,2955.6,2954.3,2.40939571]
[1769205976044,0.53197403,2955.6,2954.2,2.57884571]
[1769205976543,0.5379426,2955.5,2954.1,0.00361408]
[1769205976741,0.5379426,2955.3,2954.1,0.00361408]
[1769205976949,0.7073426,2955.2,2954.1,0.00361408]
[1769205977141,0.5379426,2955.1,2954.1,0.00361408]
[1769205977343,0.54301763,2955.0,2954.1,0.00361408]
[1769205977639,0.54301763,2955.0,2953.3,4.41039571]
[1769205977839,0.54301763,2955.0,2953.3,4.57990571]
[1769205978240,0.54301763,2955.0,2953.3,2.57890571]
[1769205978435,0.54301763,2955.0,2953.3,0.17211017]
[1769205981038,0.5379426,2954.9,2953.3,0.17211017]
[1769205981238,0.5379426,2954.8,2953.3,0.17211017]
[1769205983153,0.16943,2954.7,2953.3,0.00260017]
[1769205983349,0.5379426,2954.6,2953.3,0.00260017]
[1769205983647,0.7073726,2954.6,2953.3,0.00260017]
[1769205983844,0.5379426,2954.5,2953.3,0.00260017]
[1769206004367,0.57057151,2954.3,2953.3,0.00260017]
[1769206007367,1.41754335,2954.2,2953.3,0.00260017]
[1769206007568,0.57057151,2954.2,2953.3,0.00260017]
[1769206011467,0.84798344,2954.1,2953.3,0.00260017]
[1769206011669,0.57057151,2954.2,2953.3,0.00260017]
[1769206011877,0.84798347,2954.1,2953.3,0.00260017]
[1769206012069,0.57057151,2954.2,2953.3,0.00260017]
[1769206012571,0.84821826,2954.1,2953.3,0.00260017]
[1769206012772,0.57057151,2954.2,2953.3,0.00260017]
[1769206012963,0.84820898,2954.1,2953.3,0.00260017]
[1769206013167,0.57057151,2954.2,2953.3,0.00260017]
[1769206013471,0.84822077,2954.1,2953.3,0.00260017]
[1769206013673,0.57057151,2954.2,2953.3,0.00260017]
[1769206013974,1.41903551,2954.1,2953.3,0.00260017]
[1769206014173,0.57057151,2954.1,2953.3,0.00260017]
[1769206014677,0.57057151,2953.9,2953.0,2.40939571]
[1769206015774,0.57057151,2953.9,2953.0,2.41301892]
[1769206015975,0.57057151,2953.9,2953.0,0.00362321]
[1769206018275,0.57057151,2953.9,2952.5,5.63174464]